[Event "28th CRO-chT 1A-Men 2019"]
[Site "Mali Losinj"]
[Date "2019.10.04"]
[Round "7.23"]
[White "Palac, Mladen"]
[Black "Vujakovic, Branko"]
[Result "1/2-1/2"]
[ECO "B01"]
[WhiteElo "2544"]
[BlackElo "2322"]
[Annotator "ChessBase"]
[PlyCount "82"]
[EventDate "2019.09.28"]
[EventType "team-tourn"]
[EventCountry "CRO"]
[SourceTitle "playchess.com"]
[Source "ChessBase"]
[SourceQuality "1"]
[TimeControl "40/5400+30:1800+30"]

1. e4 {[%emt 0:08:30]} d5 {[%emt 0:00:30]} 2. exd5 {[%emt 0:00:30]} Qxd5 {[%emt 0:00:00]} 3. Nc3 {[%emt 0:00:00]} Qa5 {[%emt 0:00:00]} 4. d4 {[%emt 0:00:00]} Nf6 {[%emt 0:00:30]} 5. Nf3 {[%emt 0:01:30]} c6 {[%emt 0:00:00]} 6. Bf4 {[%emt 0:02:30]} Bf5 {[%emt 0:12:00]} 7. Ne5 {[%emt 0:00:00]} e6 {[%emt 0:17:30]} 8. g4 {[%emt 0:21:00]} Bg6 {[%emt 0:04:30]} 9. h4 {[%emt 0:01:30]} Nd5 {[%emt 0:21:30]} 10. Bd2 {[%emt 0:06:30]} Nxc3 {[%emt 0:05:30]} 11. bxc3 {[%emt 0:01:30]} Qa4 {[%emt 0:00:30]} 12. Qb1 {[%emt 0:21:30]} b5 {[%emt 0:15:37]} 13. Nxg6 {[%emt 0:06:30]} hxg6 {[%emt 0:00:14]} 14. Qb3 {[%emt 0:00:30]} Qa3 {[%emt 0:05:28]} 15. c4 {[%emt 0:03:30]} Qd6 {[%emt 0:00:19]} 16. c3 {[%emt 0:00:30]} Be7 {[%emt 0:02:30]} 17. cxb5 {[%emt 0:05:08]} Rxh4 {[%emt 0:01:53]} 18. Bg2 {[%emt 0:05:37]} Rxh1+ {[%emt 0:03:44]} 19. Bxh1 {[%emt 0:00:30]} Nd7 {[%emt 0:00:16]} 20. Bxc6 {[%emt 0:00:44]} Rd8 {[%emt 0:00:08]} 21. O-O-O {[%emt 0:05:45]} Kf8 {[%emt 0:00:26]} 22. Rh1 {[%emt 0:03:06]} Kg8 {[%emt 0:00:10]} 23. g5 {[%emt 0:00:30]} Ne5 {[%emt 0:00:29]} 24. Be4 {[%emt 0:01:03]} Ng4 {[%emt 0:00:34]} 25. f4 {[%emt 0:00:35]} Nf2 {[%emt 0:02:40]} 26. Re1 {[%emt 0:00:00]} Nxe4 {[%emt 0:00:00]} 27. Rxe4 {[%emt 0:00:03]} a6 {[%emt 0:00:00]} 28. a4 {[%emt 0:00:40]} axb5 {[%emt 0:00:25]} 29. axb5 {[%emt 0:00:41]} Ra8 {[%emt 0:00:30]} 30. Kc2 {[%emt 0:01:27]} Ra3 {[%emt 0:00:30]} 31. Qc4 {[%emt 0:00:37]} Ra1 {[%emt 0:00:30]} 32. Qb3 {[%emt 0:01:20]} Ra3 {[%emt 0:00:13]} 33. Qc4 {[%emt 0:00:41]} Ra1 {[%emt 0:00:02]} 34. Re2 {[%emt 0:00:30]} Qa3 {[%emt 0:00:21]} 35. Be3 {[%emt 0:01:03]} Rh1 {[%emt 0:01:14]} 36. Kd3 {[%emt 0:00:53]} Qa1 {[%emt 0:00:39]} 37. Qa2 {[%emt 0:00:17]} Qd1+ {[%emt 0:00:17]} 38. Kc4 {[%emt 0:00:12]} Qf1 {[%emt 0:01:45]} 39. Kb3 {[%emt 0:00:10]} Qd1+ {[%emt 0:00:53]} 40. Kc4 {[%emt 0:00:00]} Qf1 {[%emt 0:00:00]} 41. Kb3 {[%emt 0:00:58]} Qd1+ {[%emt 0:03:13]} 1/2-1/2

[Event "28th CRO-chT 1A-Men 2019"]
[Site "Mali Losinj"]
[Date "2019.10.04"]
[Round "7.24"]
[White "Brumen, Dinko"]
[Black "Zelcic, Robert"]
[Result "0-1"]
[ECO "D24"]
[WhiteElo "2317"]
[BlackElo "2508"]
[Annotator "ChessBase"]
[PlyCount "108"]
[EventDate "2019.09.28"]
[EventType "team-tourn"]
[EventCountry "CRO"]
[SourceTitle "playchess.com"]
[Source "ChessBase"]
[SourceQuality "1"]
[TimeControl "40/5400+30:1800+30"]

1. d4 {[%emt 0:01:30]} Nf6 {[%emt 0:00:30]} 2. Nf3 {[%emt 0:00:30]} d5 {[%emt 0:01:30]} 3. c4 {[%emt 0:01:30]} e6 {[%emt 0:00:00]} 4. Nc3 {[%emt 0:00:00]} dxc4 {[%emt 0:00:00]} 5. e4 {[%emt 0:02:00]} b5 {[%emt 0:00:00]} 6. e5 {[%emt 0:03:30]} Nd5 {[%emt 0:00:00]} 7. Nxb5 {[%emt 0:00:30]} Nb6 {[%emt 0:00:00]} 8. Na3 {[%emt 0:14:30]} Bxa3 {[%emt 0:09:00]} 9. bxa3 {[%emt 0:00:30]} O-O {[%emt 0:00:00]} 10. h4 {[%emt 0:07:30]} Bb7 {[%emt 0:11:00]} 11. Be2 {[%emt 0:03:30]} f5 {[%emt 0:07:30]} 12. exf6 {[%emt 0:06:30]} Qxf6 {[%emt 0:00:00]} 13. h5 {[%emt 0:00:30]} h6 {[%emt 0:01:00]} 14. Rh3 {[%emt 0:04:30]} Be4 {[%emt 0:04:30]} 15. Be3 {[%emt 0:12:30]} N8d7 {[%emt 0:03:30]} 16. Rc1 {[%emt 0:02:30]} Rab8 {[%emt 0:06:30]} 17. Nd2 {[%emt 0:06:30]} Bxg2 {[%emt 0:00:30]} 18. Rh2 {[%emt 0:06:30]} Bd5 {[%emt 0:04:30]} 19. Nxc4 {[%emt 0:01:30]} Nxc4 {[%emt 0:00:00]} 20. Bxc4 {[%emt 0:00:30]} Qf5 {[%emt 0:04:00]} 21. Bd3 {[%emt 0:05:26]} Be4 {[%emt 0:00:30]} 22. Bxe4 {[%emt 0:02:18]} Qxe4 {[%emt 0:01:30]} 23. Qc2 {[%emt 0:00:23]} Qxc2 {[%emt 0:04:30]} 24. Rxc2 {[%emt 0:00:30]} Rb7 {[%emt 0:00:30]} 25. Rc6 {[%emt 0:06:07]} Rf6 {[%emt 0:09:30]} 26. f4 {[%emt 0:06:00]} Rb1+ {[%emt 0:01:30]} 27. Kd2 {[%emt 0:02:42]} Rb2+ {[%emt 0:02:30]} 28. Rc2 {[%emt 0:00:07]} Rxc2+ {[%emt 0:00:30]} 29. Kxc2 {[%emt 0:00:00]} Nb6 {[%emt 0:00:00]} 30. Kd3 {[%emt 0:01:36]} Rf5 {[%emt 0:00:00]} 31. Ke4 {[%emt 0:01:13]} Nd5 {[%emt 0:00:30]} 32. Kf3 {[%emt 0:01:42]} a6 {[%emt 0:03:30]} 33. a4 {[%emt 0:00:28]} Nf6 {[%emt 0:00:30]} 34. Rc2 {[%emt 0:00:54]} Rxh5 {[%emt 0:00:30]} 35. Rc6 {[%emt 0:00:29]} Rh3+ {[%emt 0:01:30]} 36. Ke2 {[%emt 0:00:21]} Rh2+ {[%emt 0:03:30]} 37. Kd1 {[%emt 0:00:16]} h5 {[%emt 0:00:30]} 38. Rxa6 {[%emt 0:00:37]} h4 {[%emt 0:00:30]} 39. f5 {[%emt 0:00:50]} exf5 {[%emt 0:01:30]} 40. Bf4 {[%emt 0:00:00]} Rxa2 {[%emt 0:00:00]} 41. Bxc7 {[%emt 0:01:31]} h3 {[%emt 0:00:00]} 42. Ra5 {[%emt 0:03:30]} h2 {[%emt 0:02:30]} 43. Bxh2 {[%emt 0:00:30]} Rxh2 {[%emt 0:00:30]} 44. Rxf5 {[%emt 0:00:00]} Rh4 {[%emt 0:00:30]} 45. Kc2 {[%emt 0:01:00]} Rxd4 {[%emt 0:00:00]} 46. Kb3 {[%emt 0:00:30]} Kf7 {[%emt 0:04:00]} 47. Rf1 {[%emt 0:00:30]} Ke6 {[%emt 0:04:30]} 48. a5 {[%emt 0:00:00]} Kd6 {[%emt 0:02:30]} 49. Rc1 {[%emt 0:01:00]} Ne4 {[%emt 0:03:30]} 50. a6 {[%emt 0:04:30]} Nc5+ {[%emt 0:00:30]} 51. Kb2 {[%emt 0:02:30]} Ra4 {[%emt 0:00:30]} 52. Rd1+ {[%emt 0:00:30]} Ke7 {[%emt 0:00:00]} 53. Re1+ {[%emt 0:01:35]} Kf7 {[%emt 0:00:00]} 54. Rf1+ {[%emt 0:00:25]} Kg8 {[%emt 0:00:30]} 0-1

[Event "28th CRO-chT 1A-Men 2019"]
[Site "Mali Losinj"]
[Date "2019.10.04"]
[Round "7.25"]
[White "Tomashevsky, Evgeny"]
[Black "Lysyj, Igor"]
[Result "1/2-1/2"]
[ECO "A30"]
[WhiteElo "2718"]
[BlackElo "2596"]
[Annotator "ChessBase"]
[PlyCount "124"]
[EventDate "2019.09.28"]
[EventType "team-tourn"]
[EventCountry "CRO"]
[SourceTitle "playchess.com"]
[Source "ChessBase"]
[SourceQuality "1"]
[TimeControl "40/5400+30:1800+30"]

1. c4 {[%emt 0:00:30]} e6 {[%emt 0:00:30]} 2. Nc3 {[%emt 0:00:00]} c5 {[%emt 0:00:00]} 3. Nf3 {[%emt 0:00:00]} Nf6 {[%emt 0:00:00]} 4. g3 {[%emt 0:00:30]} b6 {[%emt 0:00:00]} 5. Bg2 {[%emt 0:00:30]} Bb7 {[%emt 0:00:00]} 6. O-O {[%emt 0:00:00]} Be7 {[%emt 0:00:30]} 7. d4 {[%emt 0:01:00]} cxd4 {[%emt 0:00:00]} 8. Qxd4 {[%emt 0:00:00]} O-O {[%emt 0:00:00]} 9. Rd1 {[%emt 0:01:00]} d6 {[%emt 0:01:30]} 10. Bg5 {[%emt 0:01:30]} Nbd7 {[%emt 0:00:00]} 11. Nb5 {[%emt 0:04:30]} d5 {[%emt 0:01:00]} 12. cxd5 {[%emt 0:00:30]} Bxd5 {[%emt 0:00:30]} 13. Nc3 {[%emt 0:02:30]} Bc6 {[%emt 0:00:30]} 14. Qc4 {[%emt 0:00:00]} Qc8 {[%emt 0:00:30]} 15. e4 {[%emt 0:02:00]} h6 {[%emt 0:01:30]} 16. Nd4 {[%emt 0:05:30]} Bb7 {[%emt 0:06:30]} 17. Qxc8 {[%emt 0:03:30]} Rfxc8 {[%emt 0:01:30]} 18. Bxf6 {[%emt 0:01:30]} Bxf6 {[%emt 0:00:30]} 19. f4 {[%emt 0:00:30]} e5 {[%emt 0:04:30]} 20. Nf5 {[%emt 0:03:30]} Rd8 {[%emt 0:05:30]} 21. Nd5 {[%emt 0:02:30]} Kf8 {[%emt 0:05:30]} 22. Nd6 {[%emt 0:09:30]} Rab8 {[%emt 0:20:30]} 23. Nxb7 {[%emt 0:38:30]} Rxb7 {[%emt 0:00:30]} 24. Nxf6 {[%emt 0:00:30]} gxf6 {[%emt 0:00:30]} 25. Rac1 {[%emt 0:00:30]} Ke7 {[%emt 0:09:30]} 26. Rd5 {[%emt 0:04:20]} Nc5 {[%emt 0:12:30]} 27. fxe5 {[%emt 0:01:31]} fxe5 {[%emt 0:00:30]} 28. Rxe5+ {[%emt 0:00:07]} Kf8 {[%emt 0:00:00]} 29. Rd5 {[%emt 0:01:16]} Re8 {[%emt 0:00:00]} 30. e5 {[%emt 0:08:55]} Rbe7 {[%emt 0:03:30]} 31. b4 {[%emt 0:00:14]} Nd7 {[%emt 0:03:30]} 32. Rd6 {[%emt 0:00:12]} Kg7 {[%emt 0:04:30]} 33. e6 {[%emt 0:00:30]} fxe6 {[%emt 0:00:30]} 34. Re1 {[%emt 0:00:05]} Nf6 {[%emt 0:02:11]} 35. Bc6 {[%emt 0:04:47]} Rc8 {[%emt 0:00:07]} 36. Re5 {[%emt 0:02:08]} Kf7 {[%emt 0:00:57]} 37. Re2 {[%emt 0:01:21]} Ne8 {[%emt 0:03:09]} 38. Rf2+ {[%emt 0:00:42]} Kg7 {[%emt 0:00:42]} 39. Rd7 {[%emt 0:02:15]} Rc7 {[%emt 0:09:42]} 40. Rxc7 {[%emt 0:00:00]} Nxc7 {[%emt 0:00:00]} 41. Re2 {[%emt 0:05:37]} Ne8 {[%emt 0:04:12]} 42. Kf2 {[%emt 0:03:30]} Nd6 {[%emt 0:03:30]} 43. Rd2 {[%emt 0:00:30]} Nf7 {[%emt 0:00:30]} 44. Ke3 {[%emt 0:03:30]} Rc7 {[%emt 0:06:30]} 45. Ba4 {[%emt 0:02:02]} Kf6 {[%emt 0:02:30]} 46. Bb3 {[%emt 0:00:22]} Ke7 {[%emt 0:03:26]} 47. Re2 {[%emt 0:01:30]} Rc6 {[%emt 0:00:56]} 48. Rf2 {[%emt 0:05:34]} Rc3+ {[%emt 0:02:37]} 49. Kd4 {[%emt 0:00:32]} Rc1 {[%emt 0:01:00]} 50. Re2 {[%emt 0:01:45]} Nd8 {[%emt 0:01:55]} 51. Ke3 {[%emt 0:00:37]} Rc6 {[%emt 0:00:55]} 52. Kf4 {[%emt 0:02:49]} Nf7 {[%emt 0:00:29]} 53. Kg4 {[%emt 0:00:37]} Kf6 {[%emt 0:03:35]} 54. Kh5 {[%emt 0:00:16]} a5 {[%emt 0:00:10]} 55. bxa5 {[%emt 0:00:59]} bxa5 {[%emt 0:00:27]} 56. Rc2 {[%emt 0:01:12]} Rd6 {[%emt 0:04:00]} 57. Rf2+ {[%emt 0:01:43]} Kg7 {[%emt 0:00:24]} 58. Rf4 {[%emt 0:00:31]} Rb6 {[%emt 0:01:38]} 59. Rg4+ {[%emt 0:00:50]} Kf6 {[%emt 0:00:11]} 60. Rf4+ {[%emt 0:00:21]} Kg7 {[%emt 0:00:06]} 61. Rg4+ {[%emt 0:02:51]} Kf6 {[%emt 0:00:02]} 62. Rf4+ {[%emt 0:00:57]} Ke5 {[%emt 0:00:31]} 1/2-1/2

[Event "28th CRO-chT 1A-Men 2019"]
[Site "Mali Losinj"]
[Date "2019.10.04"]
[Round "7.26"]
[White "Hracek, Zbynek"]
[Black "Saric, Ivan"]
[Result "1/2-1/2"]
[ECO "C47"]
[WhiteElo "2555"]
[BlackElo "2667"]
[Annotator "ChessBase"]
[PlyCount "22"]
[EventDate "2019.09.28"]
[EventType "team-tourn"]
[EventCountry "CRO"]
[SourceTitle "playchess.com"]
[Source "ChessBase"]
[SourceQuality "1"]
[TimeControl "40/5400+30:1800+30"]

1. e4 {[%emt 0:00:30]} e5 {[%emt 0:00:30]} 2. Nf3 {[%emt 0:00:00]} Nc6 {[%emt 0:00:00]} 3. Nc3 {[%emt 0:00:00]} Nf6 {[%emt 0:00:00]} 4. d4 {[%emt 0:00:00]} exd4 {[%emt 0:00:00]} 5. Nxd4 {[%emt 0:00:00]} Bb4 {[%emt 0:00:00]} 6. Nxc6 {[%emt 0:00:00]} bxc6 {[%emt 0:00:00]} 7. Bd3 {[%emt 0:00:00]} d5 {[%emt 0:00:00]} 8. exd5 {[%emt 0:00:00]} cxd5 {[%emt 0:00:00]} 9. O-O {[%emt 0:00:00]} O-O {[%emt 0:00:00]} 10. Bg5 {[%emt 0:00:00]} c6 {[%emt 0:00:30]} 11. Qf3 {[%emt 0:00:00]} Rb8 {[%emt 0:00:00]} 1/2-1/2

[Event "28th CRO-chT 1A-Men 2019"]
[Site "Mali Losinj"]
[Date "2019.10.04"]
[Round "7.27"]
[White "Markus, Robert"]
[Black "Leventic, Ivan"]
[Result "1-0"]
[ECO "D06"]
[WhiteElo "2599"]
[BlackElo "2388"]
[Annotator "ChessBase"]
[PlyCount "99"]
[EventDate "2019.09.28"]
[EventType "team-tourn"]
[EventCountry "CRO"]
[SourceTitle "playchess.com"]
[Source "ChessBase"]
[SourceQuality "1"]
[TimeControl "40/5400+30:1800+30"]

1. d4 {[%emt 0:00:30]} d5 {[%emt 0:00:30]} 2. Nf3 {[%emt 0:00:00]} c5 {[%emt 0:01:30]} 3. c4 {[%emt 0:00:00]} cxd4 {[%emt 0:02:30]} 4. cxd5 {[%emt 0:00:30]} Qxd5 {[%emt 0:05:30]} 5. Nc3 {[%emt 0:00:30]} Qa5 {[%emt 0:00:30]} 6. Nxd4 {[%emt 0:00:30]} Bd7 {[%emt 0:02:30]} 7. Qb3 {[%emt 0:05:30]} Na6 {[%emt 0:26:30]} 8. Qxb7 {[%emt 0:07:30]} Rb8 {[%emt 0:00:30]} 9. Qd5 {[%emt 0:01:30]} Qxd5 {[%emt 0:12:30]} 10. Nxd5 {[%emt 0:00:00]} e5 {[%emt 0:00:30]} 11. Nc2 {[%emt 0:05:00]} Nf6 {[%emt 0:05:30]} 12. e4 {[%emt 0:06:30]} Nxd5 {[%emt 0:11:30]} 13. Bxa6 {[%emt 0:00:30]} Bb4+ {[%emt 0:01:30]} 14. Ke2 {[%emt 0:05:30]} Nf4+ {[%emt 0:01:30]} 15. Bxf4 {[%emt 0:02:30]} exf4 {[%emt 0:00:00]} 16. Rhd1 {[%emt 0:06:30]} Ke7 {[%emt 0:06:59]} 17. Rac1 {[%emt 0:01:30]} Bd6 {[%emt 0:03:26]} 18. b3 {[%emt 0:00:30]} Rb6 {[%emt 0:04:28]} 19. Bc4 {[%emt 0:01:30]} f6 {[%emt 0:02:36]} 20. Nd4 {[%emt 0:02:30]} Rc8 {[%emt 0:00:56]} 21. Bd5 {[%emt 0:02:30]} Rbb8 {[%emt 0:06:00]} 22. Bc6 {[%emt 0:03:30]} Be6 {[%emt 0:01:11]} 23. Ba4 {[%emt 0:01:30]} Rxc1 {[%emt 0:01:15]} 24. Rxc1 {[%emt 0:00:30]} Ra8 {[%emt 0:01:07]} 25. Rc6 {[%emt 0:06:30]} Bg4+ {[%emt 0:00:45]} 26. f3 {[%emt 0:00:30]} Bc8 {[%emt 0:00:05]} 27. Rc4 {[%emt 0:00:30]} g6 {[%emt 0:00:39]} 28. Kd2 {[%emt 0:02:30]} a6 {[%emt 0:00:36]} 29. Bc6 {[%emt 0:04:30]} Ra7 {[%emt 0:00:23]} 30. b4 {[%emt 0:02:30]} Rc7 {[%emt 0:00:46]} 31. Kd3 {[%emt 0:00:30]} Be6 {[%emt 0:00:42]} 32. Bd5 {[%emt 0:00:30]} Bd7 {[%emt 0:00:29]} 33. a3 {[%emt 0:02:30]} Ra7 {[%emt 0:00:12]} 34. Nc6+ {[%emt 0:03:30]} Bxc6 {[%emt 0:00:10]} 35. Rxc6 {[%emt 0:00:00]} a5 {[%emt 0:00:36]} 36. b5 {[%emt 0:00:00]} Rc7 {[%emt 0:01:01]} 37. Ra6 {[%emt 0:00:00]} Bxa3 {[%emt 0:00:14]} 38. b6 {[%emt 0:00:00]} Rc8 {[%emt 0:00:48]} 39. b7 {[%emt 0:00:30]} Rd8 {[%emt 0:00:22]} 40. Re6+ {[%emt 0:00:00]} Kd7 {[%emt 0:00:00]} 41. Rxf6 {[%emt 0:01:00]} Be7 {[%emt 0:01:44]} 42. Ra6 {[%emt 0:01:30]} Bd6 {[%emt 0:02:30]} 43. Rxa5 {[%emt 0:00:30]} Bb8 {[%emt 0:00:30]} 44. Rc5 {[%emt 0:02:30]} Bc7 {[%emt 0:00:30]} 45. Kc4 {[%emt 0:01:30]} Rb8 {[%emt 0:01:30]} 46. Kb5 {[%emt 0:00:00]} Rf8 {[%emt 0:00:30]} 47. Be6+ {[%emt 0:01:00]} Kd8 {[%emt 0:00:30]} 48. Rd5+ {[%emt 0:00:00]} Ke8 {[%emt 0:00:00]} 49. Rd7 {[%emt 0:00:00]} Bb8 {[%emt 0:00:00]} 50. Rxh7 {[%emt 0:00:30]} 1-0

[Event "28th CRO-chT 1A-Men 2019"]
[Site "Mali Losinj"]
[Date "2019.10.04"]
[Round "7.28"]
[White "Zivkovic, Vjekoslav"]
[Black "Kuljasevic, Davorin"]
[Result "1/2-1/2"]
[ECO "C77"]
[WhiteElo "2362"]
[BlackElo "2550"]
[Annotator "ChessBase"]
[PlyCount "180"]
[EventDate "2019.09.28"]
[EventType "team-tourn"]
[EventCountry "CRO"]
[SourceTitle "playchess.com"]
[Source "ChessBase"]
[SourceQuality "1"]
[TimeControl "40/5400+30:1800+30"]

1. e4 {[%emt 0:00:30]} e5 {[%emt 0:00:30]} 2. Nf3 {[%emt 0:00:00]} Nc6 {[%emt 0:00:30]} 3. Bb5 {[%emt 0:00:00]} a6 {[%emt 0:00:00]} 4. Ba4 {[%emt 0:00:00]} Nf6 {[%emt 0:00:00]} 5. d3 {[%emt 0:00:00]} d6 {[%emt 0:00:30]} 6. c3 {[%emt 0:01:30]} g6 {[%emt 0:01:30]} 7. O-O {[%emt 0:04:30]} Bg7 {[%emt 0:00:00]} 8. Re1 {[%emt 0:03:30]} O-O {[%emt 0:00:00]} 9. Nbd2 {[%emt 0:00:30]} Re8 {[%emt 0:01:30]} 10. Nf1 {[%emt 0:00:30]} b5 {[%emt 0:00:30]} 11. Bc2 {[%emt 0:00:30]} Nb8 {[%emt 0:00:30]} 12. a4 {[%emt 0:09:30]} Bb7 {[%emt 0:00:30]} 13. axb5 {[%emt 0:03:30]} axb5 {[%emt 0:00:30]} 14. Rxa8 {[%emt 0:00:00]} Bxa8 {[%emt 0:00:30]} 15. Ng3 {[%emt 0:07:00]} c5 {[%emt 0:01:30]} 16. d4 {[%emt 0:04:30]} Nbd7 {[%emt 0:08:30]} 17. d5 {[%emt 0:08:30]} c4 {[%emt 0:01:30]} 18. h3 {[%emt 0:12:30]} Nc5 {[%emt 0:01:30]} 19. Be3 {[%emt 0:00:30]} Bb7 {[%emt 0:02:30]} 20. Nd2 {[%emt 0:08:30]} Qc7 {[%emt 0:01:30]} 21. Nb1 {[%emt 0:01:30]} Bc8 {[%emt 0:08:30]} 22. Na3 {[%emt 0:09:30]} Bd7 {[%emt 0:00:30]} 23. Qd2 {[%emt 0:02:30]} h5 {[%emt 0:01:30]} 24. f3 {[%emt 0:01:30]} Nh7 {[%emt 0:07:30]} 25. Kh2 {[%emt 0:07:37]} Qd8 {[%emt 0:03:30]} 26. Qf2 {[%emt 0:00:12]} Qe7 {[%emt 0:03:30]} 27. Rd1 {[%emt 0:00:33]} Rc8 {[%emt 0:00:30]} 28. Kh1 {[%emt 0:04:11]} Bf6 {[%emt 0:00:30]} 29. Nf1 {[%emt 0:01:35]} h4 {[%emt 0:02:30]} 30. Ra1 {[%emt 0:00:46]} Bg5 {[%emt 0:10:30]} 31. Nb1 {[%emt 0:00:20]} Bxe3 {[%emt 0:00:30]} 32. Nxe3 {[%emt 0:00:02]} Qg5 {[%emt 0:00:30]} 33. Ra7 {[%emt 0:03:20]} Nf6 {[%emt 0:01:30]} 34. Nd2 {[%emt 0:00:11]} Nh5 {[%emt 0:00:30]} 35. Kh2 {[%emt 0:03:31]} Nf4 {[%emt 0:01:30]} 36. Ndf1 {[%emt 0:00:32]} Kg7 {[%emt 0:09:30]} 37. Qd2 {[%emt 0:02:03]} Qd8 {[%emt 0:06:30]} 38. Qe1 {[%emt 0:00:38]} Rb8 {[%emt 0:04:30]} 39. Qa1 {[%emt 0:01:05]} Qb6 {[%emt 0:10:13]} 40. Qa5 {[%emt 0:00:00]} Qxa5 {[%emt 0:00:00]} 41. Rxa5 {[%emt 0:01:54]} Kf8 {[%emt 0:03:17]} 42. Nd2 {[%emt 0:05:30]} Ke7 {[%emt 0:01:30]} 43. Ra2 {[%emt 0:04:30]} Rb6 {[%emt 0:02:30]} 44. Kg1 {[%emt 0:01:30]} Ra6 {[%emt 0:02:30]} 45. Rxa6 {[%emt 0:00:30]} Nxa6 {[%emt 0:00:30]} 46. Kf1 {[%emt 0:01:30]} Kd8 {[%emt 0:00:30]} 47. b4 {[%emt 0:04:57]} cxb3 {[%emt 0:00:30]} 48. Bxb3 {[%emt 0:01:22]} Nc5 {[%emt 0:01:30]} 49. Bc2 {[%emt 0:02:00]} Kc7 {[%emt 0:00:30]} 50. Nb1 {[%emt 0:02:04]} Kb6 {[%emt 0:01:30]} 51. Kf2 {[%emt 0:02:10]} Bc8 {[%emt 0:05:30]} 52. Ke1 {[%emt 0:03:00]} Ba6 {[%emt 0:07:30]} 53. Kf2 {[%emt 0:00:54]} Bc8 {[%emt 0:02:32]} 54. Ke1 {[%emt 0:00:23]} Nb7 {[%emt 0:02:01]} 55. Nd2 {[%emt 0:01:27]} Na5 {[%emt 0:00:29]} 56. Kf2 {[%emt 0:00:19]} Bd7 {[%emt 0:01:47]} 57. Kf1 {[%emt 0:02:05]} Nb7 {[%emt 0:00:44]} 58. Kf2 {[%emt 0:00:27]} Nc5 {[%emt 0:00:12]} 59. Nb1 {[%emt 0:00:24]} Na4 {[%emt 0:01:29]} 60. Kf1 {[%emt 0:01:32]} Kc5 {[%emt 0:03:20]} 61. Kf2 {[%emt 0:00:18]} Nh5 {[%emt 0:02:56]} 62. Ke1 {[%emt 0:01:24]} Ng3 {[%emt 0:00:43]} 63. Kd2 {[%emt 0:00:55]} f5 {[%emt 0:00:42]} 64. Bd3 {[%emt 0:00:49]} Kb6 {[%emt 0:02:32]} 65. Nd1 {[%emt 0:01:05]} fxe4 {[%emt 0:02:36]} 66. fxe4 {[%emt 0:00:19]} Nc5 {[%emt 0:00:12]} 67. Ke3 {[%emt 0:00:37]} Nxd3 {[%emt 0:00:55]} 68. Kxd3 {[%emt 0:00:04]} Nxe4 {[%emt 0:00:07]} 69. Kxe4 {[%emt 0:00:41]} Bf5+ {[%emt 0:00:04]} 70. Kf3 {[%emt 0:00:04]} Bxb1 {[%emt 0:00:30]} 71. Kg4 {[%emt 0:00:00]} Be4 {[%emt 0:00:40]} 72. Ne3 {[%emt 0:00:00]} Kc5 {[%emt 0:00:36]} 73. Kxh4 {[%emt 0:00:00]} Bxd5 {[%emt 0:00:00]} 74. Kg5 {[%emt 0:00:13]} Be4 {[%emt 0:00:35]} 75. Kf6 {[%emt 0:00:05]} b4 {[%emt 0:00:33]} 76. cxb4+ {[%emt 0:00:01]} Kd4 {[%emt 0:01:56]} 77. Ng4 {[%emt 0:03:03]} Bxg2 {[%emt 0:00:07]} 78. h4 {[%emt 0:00:01]} e4 {[%emt 0:02:40]} 79. Kxg6 {[%emt 0:00:24]} e3 {[%emt 0:00:29]} 80. Nxe3 {[%emt 0:00:40]} Kxe3 {[%emt 0:00:02]} 81. h5 {[%emt 0:00:27]} Kd4 {[%emt 0:01:25]} 82. h6 {[%emt 0:02:04]} Ke5 {[%emt 0:01:32]} 83. b5 {[%emt 0:00:39]} d5 {[%emt 0:00:24]} 84. b6 {[%emt 0:01:01]} Be4+ {[%emt 0:00:27]} 85. Kg5 {[%emt 0:00:31]} Kd6 {[%emt 0:00:13]} 86. Kf4 {[%emt 0:00:11]} Bh7 {[%emt 0:00:43]} 87. b7 {[%emt 0:00:10]} Kc7 {[%emt 0:00:03]} 88. Ke5 {[%emt 0:00:01]} Bg8 {[%emt 0:00:30]} 89. h7 {[%emt 0:00:10]} Bxh7 {[%emt 0:00:02]} 90. Kxd5 {[%emt 0:00:00]} Kxb7 {[%emt 0:00:03]} 1/2-1/2

[Event "28th CRO-chT 1A-Men 2019"]
[Site "Mali Losinj"]
[Date "2019.10.04"]
[Round "7.29"]
[White "Jovanic, Ognjen"]
[Black "Mrkonjic, Nenad"]
[Result "1/2-1/2"]
[ECO "D36"]
[WhiteElo "2532"]
[BlackElo "2347"]
[Annotator "ChessBase"]
[PlyCount "92"]
[EventDate "2019.09.28"]
[EventType "team-tourn"]
[EventCountry "CRO"]
[SourceTitle "playchess.com"]
[Source "ChessBase"]
[SourceQuality "1"]
[TimeControl "40/5400+30:1800+30"]

1. d4 {[%emt 0:00:30]} d5 {[%emt 0:00:30]} 2. c4 {[%emt 0:00:30]} e6 {[%emt 0:02:30]} 3. Nc3 {[%emt 0:00:30]} Nf6 {[%emt 0:00:30]} 4. cxd5 {[%emt 0:01:30]} exd5 {[%emt 0:00:30]} 5. Bg5 {[%emt 0:00:30]} c6 {[%emt 0:00:30]} 6. e3 {[%emt 0:00:30]} Be7 {[%emt 0:01:30]} 7. Qc2 {[%emt 0:01:30]} Bg4 {[%emt 0:03:30]} 8. Nge2 {[%emt 0:04:30]} Bxe2 {[%emt 0:04:30]} 9. Bxe2 {[%emt 0:00:30]} Ne4 {[%emt 0:01:30]} 10. Bf4 {[%emt 0:06:30]} Ng5 {[%emt 0:04:30]} 11. Bd3 {[%emt 0:06:30]} Ne6 {[%emt 0:04:30]} 12. Bg3 {[%emt 0:01:30]} g6 {[%emt 0:00:00]} 13. f3 {[%emt 0:08:30]} Bh4 {[%emt 0:02:00]} 14. O-O-O {[%emt 0:03:30]} Nd7 {[%emt 0:01:30]} 15. Kb1 {[%emt 0:03:30]} O-O {[%emt 0:13:30]} 16. Bxh4 {[%emt 0:06:30]} Qxh4 {[%emt 0:00:30]} 17. g3 {[%emt 0:00:00]} Qf6 {[%emt 0:05:30]} 18. f4 {[%emt 0:02:00]} Ng7 {[%emt 0:00:30]} 19. Qf2 {[%emt 0:10:30]} Nf5 {[%emt 0:01:30]} 20. g4 {[%emt 0:02:30]} Nd6 {[%emt 0:00:30]} 21. h4 {[%emt 0:02:30]} Rfe8 {[%emt 0:01:30]} 22. g5 {[%emt 0:10:30]} Qe6 {[%emt 0:02:30]} 23. Rde1 {[%emt 0:00:30]} f5 {[%emt 0:01:30]} 24. h5 {[%emt 0:01:30]} Nf8 {[%emt 0:00:30]} 25. Rh3 {[%emt 0:01:30]} Re7 {[%emt 0:05:30]} 26. Reh1 {[%emt 0:00:30]} Rg7 {[%emt 0:01:30]} 27. Ka1 {[%emt 0:04:30]} Re8 {[%emt 0:00:30]} 28. Qc2 {[%emt 0:00:35]} a6 {[%emt 0:08:30]} 29. Na4 {[%emt 0:01:16]} Qe7 {[%emt 0:00:30]} 30. Nc5 {[%emt 0:00:51]} Kf7 {[%emt 0:03:30]} 31. Bf1 {[%emt 0:03:36]} Qc7 {[%emt 0:07:30]} 32. Nd3 {[%emt 0:02:13]} Ke7 {[%emt 0:00:30]} 33. Ne5 {[%emt 0:00:36]} Nf7 {[%emt 0:06:39]} 34. Bd3 {[%emt 0:04:01]} Nxe5 {[%emt 0:01:54]} 35. dxe5 {[%emt 0:00:02]} Ne6 {[%emt 0:01:35]} 36. a3 {[%emt 0:01:43]} Kd8 {[%emt 0:02:12]} 37. hxg6 {[%emt 0:00:29]} hxg6 {[%emt 0:00:03]} 38. Rh6 {[%emt 0:04:05]} Qd7 {[%emt 0:05:19]} 39. Bxf5 {[%emt 0:02:25]} gxf5 {[%emt 0:00:08]} 40. Qxf5 {[%emt 0:00:00]} Kc7 {[%emt 0:00:00]} 41. Rh7 {[%emt 0:11:08]} Ree7 {[%emt 0:09:40]} 42. g6 {[%emt 0:01:30]} d4 {[%emt 0:10:12]} 43. exd4 {[%emt 0:03:57]} Nxd4 {[%emt 0:00:52]} 44. Qf6 {[%emt 0:08:22]} Nc2+ {[%emt 0:09:06]} 45. Kb1 {[%emt 0:01:22]} Nxa3+ {[%emt 0:03:02]} 46. bxa3 {[%emt 0:04:12]} Qd3+ {[%emt 0:00:13]} 1/2-1/2